[Event "Goteborg Open 2024"]
[Site "Goteborgs Schackcentrum, Vegatan 20, Gothenburg, Sweden"]
[Date "2024.08.03"]
[Round "6.4"]
[White "Mohammed, Safian Haj"]
[Black "Ask, Josef"]
[Result "1-0"]
[TimeControl "15 minutes + 5 seconds per move from move one (Round 1 - 4) / 90 minutes + 30 seconds per move from move one (Round 5 - 8)"]
[BlackTitle "FM"]
[WhiteFideId "1729276"]
[BlackFideId "1704583"]
[WhiteElo "1890"]
[BlackElo "2129"]

1. e4 {[%clk 01:30:57]} {[%emt 00:00:03]} c5 {[%clk 01:30:52]} {[%emt
00:00:08]} 2. Nf3 {[%clk 01:31:10]} {[%emt 00:00:18]} Nc6 {[%clk 01:31:08]}
{[%emt 00:00:14]} 3. d4 {[%clk 01:31:24]} {[%emt 00:00:15]} cxd4 {[%clk
01:31:23]} {[%emt 00:00:14]} 4. Nxd4 {[%clk 01:31:51]} {[%emt 00:00:04]} Nf6
{[%clk 01:31:45]} {[%emt 00:00:08]} 5. Nc3 {[%clk 01:32:01]} {[%emt 00:00:20]}
e5 {[%clk 01:31:45]} {[%emt 00:00:29]} 6. Ndb5 {[%clk 01:31:47]} {[%emt
00:00:45]} d6 {[%clk 01:31:59]} {[%emt 00:00:17]} 7. Bg5 {[%clk 01:32:02]}
{[%emt 00:00:14]} a6 {[%clk 01:32:03]} {[%emt 00:00:26]} 8. Na3 {[%clk
01:32:24]} {[%emt 00:00:08]} b5 {[%clk 01:32:15]} {[%emt 00:00:18]} 9. Nd5
{[%clk 01:32:45]} {[%emt 00:00:10]} Be7 {[%clk 01:32:21]} {[%emt 00:00:23]} 10.
Bxf6 {[%clk 01:33:07]} {[%emt 00:00:09]} Bxf6 {[%clk 01:32:44]} {[%emt
00:00:06]} 11. c3 {[%clk 01:33:31]} {[%emt 00:00:07]} Rb8 {[%clk 01:31:25]}
{[%emt 00:01:48]} 12. Nc2 {[%clk 01:32:18]} {[%emt 00:01:43]} a5 {[%clk
01:29:22]} {[%emt 00:02:33]} 13. a3 {[%clk 01:30:34]} {[%emt 00:02:15]} Bg5
{[%clk 01:26:54]} {[%emt 00:02:57]} 14. Bd3 {[%clk 01:26:45]} {[%emt 00:04:20]}
g6 {[%clk 01:17:23]} {[%emt 00:10:01]} 15. Qe2 {[%clk 01:19:31]} {[%emt
00:07:43]} Na7 {[%clk 01:16:10]} {[%emt 00:01:43]} 16. O-O {[%clk 01:14:22]}
{[%emt 00:05:39]} O-O {[%clk 01:16:04]} {[%emt 00:00:35]} 17. Nce3 {[%clk
01:09:13]} {[%emt 00:05:39]} Bh6 {[%clk 01:05:25]} {[%emt 00:11:09]} 18. Rad1
{[%clk 01:05:03]} {[%emt 00:04:41]} Qg5 {[%clk 00:58:19]} {[%emt 00:07:36]} 19.
f4 {[%clk 00:59:07]} {[%emt 00:06:26]} exf4 {[%clk 00:58:33]} {[%emt 00:00:16]}
20. Rxf4 {[%clk 00:54:27]} {[%emt 00:05:11]} Be6 {[%clk 00:55:33]} {[%emt
00:03:29]} 21. Rdf1 {[%clk 00:45:20]} {[%emt 00:09:36]} Bg7 {[%clk 00:47:17]}
{[%emt 00:08:47]} 22. Qf2 {[%clk 00:44:38]} {[%emt 00:01:12]} Nc6 {[%clk
00:45:27]} {[%emt 00:02:20]} 23. h4 {[%clk 00:42:01]} {[%emt 00:03:06]} Qd8
{[%clk 00:44:12]} {[%emt 00:01:46]} 24. h5 {[%clk 00:40:28]} {[%emt 00:02:03]}
Ne5 {[%clk 00:43:16]} {[%emt 00:01:26]} 25. Be2 {[%clk 00:40:38]} {[%emt
00:00:20]} Qg5 {[%clk 00:40:58]} {[%emt 00:02:47]} 26. Nf6+ {[%clk 00:38:13]}
{[%emt 00:02:55]} Kh8 {[%clk 00:38:19]} {[%emt 00:03:09]} 27. Ned5 {[%clk
00:33:21]} {[%emt 00:05:23]} Rb7 {[%clk 00:34:02]} {[%emt 00:04:46]} 28. hxg6
{[%clk 00:32:00]} {[%emt 00:01:52]} hxg6 {[%clk 00:25:49]} {[%emt 00:08:43]} 29.
Rh4+ {[%clk 00:29:59]} {[%emt 00:02:31]} Bh6 {[%clk 00:26:08]} {[%emt
00:00:11]} 30. Qg3 {[%clk 00:28:03]} {[%emt 00:02:25]} Bg4 {[%clk 00:14:19]}
{[%emt 00:12:19]} 31. Bxg4 {[%clk 00:27:11]} {[%emt 00:01:23]} Kg7 {[%clk
00:14:16]} {[%emt 00:00:33]} 32. Qh3 {[%clk 00:26:33]} {[%emt 00:01:08]} Nc4
{[%clk 00:11:51]} {[%emt 00:02:55]} 33. Be2 {[%clk 00:23:02]} {[%emt 00:04:00]}
Rh8 {[%clk 00:08:15]} {[%emt 00:04:06]} 34. Rg4 {[%clk 00:19:19]} {[%emt
00:04:13]} Qe5 {[%clk 00:02:53]} {[%emt 00:05:52]} 35. Bxc4 {[%clk 00:13:11]}
{[%emt 00:06:39]} bxc4 {[%clk 00:02:56]} {[%emt 00:00:28]} 36. Rf5 {[%clk
00:11:34]} {[%emt 00:02:07]} Qe6 {[%clk 00:02:40]} {[%emt 00:00:45]} 37. Rf2
{[%clk 00:10:48]} {[%emt 00:01:15]} Rbb8 {[%clk 00:01:18]} {[%emt 00:01:53]} 38.
Qf3 {[%clk 00:09:51]} {[%emt 00:01:26]} Bc1 {[%clk 00:01:28]} {[%emt 00:00:21]}
39. Rg3 {[%clk 00:09:29]} {[%emt 00:00:52]} Bxb2 {[%clk 00:01:24]} {[%emt
00:00:35]} 40. Nh5+ {[%clk 00:10:00]} {[%emt 00:00:30]} Kf8 {[%clk 00:01:51]}
{[%emt 00:00:31]} 41. Nhf4 {[%clk 00:09:46]} {[%emt 00:00:44]} 1-0

[Event "Goteborg Open 2024"]
[Site "Goteborgs Schackcentrum, Vegatan 20, Gothenburg, Sweden"]
[Date "2024.08.03"]
[Round "6.5"]
[White "Al Waeli, Laith"]
[Black "Ottgard, Andreas"]
[Result "0-1"]
[TimeControl "15 minutes + 5 seconds per move from move one (Round 1 - 4) / 90 minutes + 30 seconds per move from move one (Round 5 - 8)"]
[WhiteTitle "FM"]
[WhiteFideId "4801059"]
[BlackFideId "1730592"]
[WhiteElo "2077"]
[BlackElo "1900"]

1. e4 {[%clk 01:28:34]} {[%emt 00:02:26]} d6 {[%clk 01:30:16]} {[%emt
00:00:45]} 2. d4 {[%clk 01:28:40]} {[%emt 00:00:23]} Nf6 {[%clk 01:30:39]}
{[%emt 00:00:07]} 3. Bd3 {[%clk 01:29:05]} {[%emt 00:00:04]} e5 {[%clk
01:30:53]} {[%emt 00:00:17]} 4. c3 {[%clk 01:29:30]} {[%emt 00:00:05]} g6
{[%clk 01:26:28]} {[%emt 00:04:54]} 5. Nf3 {[%clk 01:29:41]} {[%emt 00:00:19]}
Nbd7 {[%clk 01:26:23]} {[%emt 00:00:37]} 6. O-O {[%clk 01:29:53]} {[%emt
00:00:18]} Bg7 {[%clk 01:26:39]} {[%emt 00:00:14]} 7. Re1 {[%clk 01:30:15]}
{[%emt 00:00:07]} O-O {[%clk 01:26:34]} {[%emt 00:00:36]} 8. Nbd2 {[%clk
01:30:31]} {[%emt 00:00:13]} c6 {[%clk 01:25:27]} {[%emt 00:01:38]} 9. Bc2
{[%clk 01:30:33]} {[%emt 00:00:27]} a5 {[%clk 01:22:44]} {[%emt 00:03:14]} 10.
Nc4 {[%clk 01:28:35]} {[%emt 00:02:27]} exd4 {[%clk 01:08:43]} {[%emt
00:14:32]} 11. cxd4 {[%clk 01:22:44]} {[%emt 00:06:21]} d5 {[%clk 01:05:55]}
{[%emt 00:03:18]} 12. exd5 {[%clk 01:23:03]} {[%emt 00:00:10]} Nxd5 {[%clk
01:06:05]} {[%emt 00:00:20]} 13. Bg5 {[%clk 01:22:10]} {[%emt 00:01:23]} N7f6
{[%clk 01:05:53]} {[%emt 00:00:43]} 14. h3 {[%clk 01:22:34]} {[%emt 00:00:06]}
Be6 {[%clk 01:03:44]} {[%emt 00:02:38]} 15. Nfe5 {[%clk 01:19:08]} {[%emt
00:03:56]} Qc7 {[%clk 01:01:33]} {[%emt 00:02:41]} 16. Rc1 {[%clk 01:18:36]}
{[%emt 00:01:02]} Nd7 {[%clk 00:56:15]} {[%emt 00:05:49]} 17. Bb1 {[%clk
01:14:04]} {[%emt 00:04:59]} Nxe5 {[%clk 00:52:36]} {[%emt 00:04:12]} 18. dxe5
{[%clk 01:14:10]} {[%emt 00:00:24]} h6 {[%clk 00:42:51]} {[%emt 00:10:15]} 19.
Bh4 {[%clk 01:11:53]} {[%emt 00:02:44]} Rab8 {[%clk 00:33:53]} {[%emt
00:09:30]} 20. Qd2 {[%clk 01:10:46]} {[%emt 00:01:34]} b6 {[%clk 00:21:30]}
{[%emt 00:12:56]} 21. f4 {[%clk 01:09:04]} {[%emt 00:02:12]} c5 {[%clk
00:19:25]} {[%emt 00:02:36]} 22. Be4 {[%clk 01:07:19]} {[%emt 00:02:15]} Nb4
{[%clk 00:18:09]} {[%emt 00:01:45]} 23. a3 {[%clk 01:05:33]} {[%emt 00:02:15]}
Bxc4 {[%clk 00:15:12]} {[%emt 00:03:28]} 24. Rxc4 {[%clk 01:02:34]} {[%emt
00:03:29]} Nc6 {[%clk 00:15:15]} {[%emt 00:00:26]} 25. Qd5 {[%clk 01:01:13]}
{[%emt 00:01:52]} Rbc8 {[%clk 00:11:49]} {[%emt 00:03:56]} 26. Bxg6 {[%clk
01:00:56]} {[%emt 00:00:46]} Rfd8 {[%clk 00:10:42]} {[%emt 00:01:37]} 27. Bxd8
{[%clk 01:01:18]} {[%emt 00:00:08]} Rxd8 {[%clk 00:11:05]} {[%emt 00:00:07]} 28.
Bxf7+ {[%clk 01:01:44]} {[%emt 00:00:03]} Qxf7 {[%clk 00:11:03]} {[%emt
00:00:33]} 29. Qxc6 {[%clk 00:56:52]} {[%emt 00:05:22]} Qxc4 {[%clk 00:11:19]}
{[%emt 00:00:14]} 30. e6 {[%clk 00:57:19]} {[%emt 00:00:03]} Bf6 {[%clk
00:03:34]} {[%emt 00:08:16]} 31. Qc7 {[%clk 00:54:48]} {[%emt 00:02:59]} Rf8
{[%clk 00:01:58]} {[%emt 00:02:07]} 32. f5 {[%clk 00:47:24]} {[%emt 00:07:54]}
Qd5 {[%clk 00:01:40]} {[%emt 00:00:49]} 33. Qg3+ {[%clk 00:47:24]} {[%emt
00:00:29]} Bg7 {[%clk 00:00:38]} {[%emt 00:01:33]} 34. Qg6 {[%clk 00:46:22]}
{[%emt 00:01:32]} Qd4+ {[%clk 00:00:34]} {[%emt 00:00:34]} 35. Kh1 {[%clk
00:46:15]} {[%emt 00:00:36]} Qf2 {[%clk 00:00:39]} {[%emt 00:00:26]} 36. Re4
{[%clk 00:45:57]} {[%emt 00:00:47]} Qf1+ {[%clk 00:00:40]} {[%emt 00:00:30]} 37.
Kh2 {[%clk 00:46:17]} {[%emt 00:00:09]} Qxf5 {[%clk 00:00:38]} {[%emt
00:00:33]} 38. Qxf5 {[%clk 00:44:46]} {[%emt 00:02:01]} Rxf5 {[%clk 00:01:05]}
{[%emt 00:00:02]} 39. e7 {[%clk 00:44:11]} {[%emt 00:01:06]} Be5+ {[%clk
00:01:29]} {[%emt 00:00:06]} 40. Kg1 {[%clk 00:44:36]} {[%emt 00:00:05]} Kf7
{[%clk 00:01:43]} {[%emt 00:00:16]} 41. g4 {[%clk 00:45:01]} {[%emt 00:00:05]}
Bd4+ {[%clk 00:01:07]} {[%emt 00:01:07]} 42. Rxd4 {[%clk 00:42:44]} {[%emt
00:02:44]} cxd4 {[%clk 00:01:30]} {[%emt 00:00:08]} 43. e8=Q+ {[%clk 00:42:23]}
{[%emt 00:00:52]} Kxe8 {[%clk 00:01:50]} {[%emt 00:00:10]} 44. gxf5 {[%clk
00:42:49]} {[%emt 00:00:03]} Kf7 {[%clk 00:02:04]} {[%emt 00:00:16]} 0-1

[Event "Goteborg Open 2024"]
[Site "Goteborgs Schackcentrum, Vegatan 20, Gothenburg, Sweden"]
[Date "2024.08.03"]
[Round "6.6"]
[White "Lennerstad, Allan"]
[Black "Eldh, Hjalmar"]
[Result "1-0"]
[TimeControl "15 minutes + 5 seconds per move from move one (Round 1 - 4) / 90 minutes + 30 seconds per move from move one (Round 5 - 8)"]
[WhiteFideId "1723774"]
[BlackFideId "1767968"]
[WhiteElo "1950"]
[BlackElo "1897"]

1. d4 {[%clk 01:29:16]} {[%emt 00:01:43]} Nf6 {[%clk 01:23:19]} {[%emt
00:07:41]} 2. Nf3 {[%clk 01:29:42]} {[%emt 00:00:05]} g6 {[%clk 01:23:42]}
{[%emt 00:00:07]} 3. c4 {[%clk 01:29:48]} {[%emt 00:00:24]} Bg7 {[%clk
01:24:07]} {[%emt 00:00:05]} 4. Nc3 {[%clk 01:30:00]} {[%emt 00:00:17]} d5
{[%clk 01:24:31]} {[%emt 00:00:06]} 5. e3 {[%clk 01:29:10]} {[%emt 00:01:21]}
O-O {[%clk 01:24:49]} {[%emt 00:00:12]} 6. Be2 {[%clk 01:29:19]} {[%emt
00:00:21]} c5 {[%clk 01:25:00]} {[%emt 00:00:19]} 7. O-O {[%clk 01:26:03]}
{[%emt 00:03:46]} cxd4 {[%clk 01:25:25]} {[%emt 00:00:04]} 8. exd4 {[%clk
01:26:08]} {[%emt 00:00:26]} Nc6 {[%clk 01:24:17]} {[%emt 00:01:37]} 9. c5
{[%clk 01:25:06]} {[%emt 00:01:32]} Bf5 {[%clk 01:23:58]} {[%emt 00:00:47]} 10.
a3 {[%clk 01:22:52]} {[%emt 00:02:47]} Ne4 {[%clk 01:23:48]} {[%emt 00:00:39]}
11. Bb5 {[%clk 01:13:16]} {[%emt 00:10:06]} Nxc3 {[%clk 01:23:27]} {[%emt
00:00:52]} 12. bxc3 {[%clk 01:12:48]} {[%emt 00:00:58]} Qa5 {[%clk 01:23:22]}
{[%emt 00:00:28]} 13. Qb3 {[%clk 01:10:08]} {[%emt 00:03:16]} Rab8 {[%clk
01:23:02]} {[%emt 00:00:51]} 14. Bd2 {[%clk 01:06:38]} {[%emt 00:04:00]} Rfd8
{[%clk 01:21:20]} {[%emt 00:02:12]} 15. Bf4 {[%clk 01:00:37]} {[%emt 00:06:31]}
Rbc8 {[%clk 01:21:12]} {[%emt 00:00:38]} 16. Rfe1 {[%clk 01:00:42]} {[%emt
00:00:24]} Be4 {[%clk 01:20:28]} {[%emt 00:01:14]} 17. Be2 {[%clk 00:58:51]}
{[%emt 00:02:22]} e5 {[%clk 01:19:39]} {[%emt 00:01:17]} 18. Nxe5 {[%emt
00:13:40]} Nxe5 {[%clk 01:19:57]} {[%emt 00:00:08]} 19. dxe5 {[%clk 00:45:11]}
{[%emt 00:01:06]} Qxc5 {[%clk 01:19:37]} {[%emt 00:00:49]} 20. Rac1 {[%clk
00:43:06]} {[%emt 00:02:36]} b6 {[%clk 01:19:31]} {[%emt 00:00:35]} 21. Ba6
{[%clk 00:42:20]} {[%emt 00:01:18]} Rc6 {[%clk 01:18:46]} {[%emt 00:01:13]} 22.
Be3 {[%clk 00:40:50]} {[%emt 00:02:00]} Qe7 {[%clk 01:18:27]} {[%emt 00:00:45]}
23. f3 {[%clk 00:41:01]} {[%emt 00:00:24]} Bf5 {[%clk 01:17:52]} {[%emt
00:01:04]} 24. Bd4 {[%clk 00:40:35]} {[%emt 00:00:57]} Bc8 {[%clk 01:17:33]}
{[%emt 00:00:48]} 25. Bd3 {[%clk 00:39:42]} {[%emt 00:01:24]} Re6 {[%clk
01:15:23]} {[%emt 00:02:39]} 26. f4 {[%clk 00:38:04]} {[%emt 00:02:09]} Bf8
{[%clk 01:15:26]} {[%emt 00:00:26]} 27. a4 {[%clk 00:36:15]} {[%emt 00:02:20]}
Qc7 {[%clk 01:08:16]} {[%emt 00:07:39]} 28. Qd1 {[%clk 00:32:21]} {[%emt
00:04:24]} Bd7 {[%clk 01:07:49]} {[%emt 00:00:57]} 29. f5 {[%clk 00:31:33]}
{[%emt 00:01:19]} Ree8 {[%clk 01:07:39]} {[%emt 00:00:40]} 30. e6 {[%clk
00:30:29]} {[%emt 00:01:34]} fxe6 {[%clk 01:06:59]} {[%emt 00:01:09]} 31. fxg6
{[%clk 00:29:55]} {[%emt 00:01:04]} e5 {[%clk 01:06:59]} {[%emt 00:00:30]} 32.
Qh5 {[%clk 00:28:02]} {[%emt 00:02:24]} h6 {[%clk 01:04:40]} {[%emt 00:02:49]}
33. Bxe5 {[%clk 00:26:49]} {[%emt 00:01:43]} Qc5+ {[%clk 01:04:09]} {[%emt
00:01:00]} 34. Bd4 {[%clk 00:26:50]} {[%emt 00:00:30]} Qd6 {[%clk 01:03:58]}
{[%emt 00:00:39]} 35. Rf1 {[%clk 00:26:06]} {[%emt 00:01:15]} Bxa4 {[%clk
01:03:03]} {[%emt 00:01:26]} 36. g7 {[%clk 00:21:08]} {[%emt 00:05:27]} Be7
{[%clk 01:02:38]} {[%emt 00:00:55]} 37. Qf5 {[%clk 00:21:27]} {[%emt 00:00:11]}
Bf6 {[%clk 01:02:14]} {[%emt 00:00:55]} 38. Qh7+ {[%clk 00:21:45]} {[%emt
00:00:12]} Kf7 {[%clk 01:02:34]} {[%emt 00:00:09]} 39. g8=Q# {[%clk 00:21:53]}
{[%emt 00:00:22]} 1-0

[Event "Goteborg Open 2024"]
[Site "Goteborgs Schackcentrum, Vegatan 20, Gothenburg, Sweden"]
[Date "2024.08.03"]
[Round "6.7"]
[White "Andersson, Stig"]
[Black "Harila, Per"]
[Result "1/2-1/2"]
[TimeControl "15 minutes + 5 seconds per move from move one (Round 1 - 4) / 90 minutes + 30 seconds per move from move one (Round 5 - 8)"]
[WhiteFideId "1731971"]
[BlackFideId "1707248"]
[WhiteElo "1889"]
[BlackElo "1947"]

1. e4 {[%clk 01:27:07]} {[%emt 00:03:53]} d5 {[%clk 01:30:55]} {[%emt
00:00:06]} 2. d4 {[%clk 01:27:07]} {[%emt 00:00:30]} dxe4 {[%clk 01:31:04]}
{[%emt 00:00:21]} 3. Bc4 {[%clk 01:27:27]} {[%emt 00:00:10]} Nf6 {[%clk
01:30:48]} {[%emt 00:00:47]} 4. c3 {[%clk 01:27:34]} {[%emt 00:00:21]} c6
{[%clk 01:30:08]} {[%emt 00:01:11]} 5. Ne2 {[%clk 01:27:13]} {[%emt 00:00:50]}
Qb6 {[%clk 01:29:11]} {[%emt 00:01:25]} 6. O-O {[%clk 01:24:59]} {[%emt
00:02:46]} Bf5 {[%clk 01:29:25]} {[%emt 00:00:17]} 7. Ng3 {[%clk 01:24:32]}
{[%emt 00:00:57]} Bg6 {[%clk 01:29:52]} {[%emt 00:00:02]} 8. Bb3 {[%clk
01:22:21]} {[%emt 00:02:41]} e6 {[%clk 01:28:44]} {[%emt 00:01:38]} 9. Nd2
{[%clk 01:21:34]} {[%emt 00:01:16]} Be7 {[%clk 01:28:38]} {[%emt 00:00:37]} 10.
Bc2 {[%clk 01:19:43]} {[%emt 00:02:21]} Nbd7 {[%clk 01:28:52]} {[%emt
00:00:17]} 11. Ndxe4 {[%clk 01:19:23]} {[%emt 00:00:49]} Nxe4 {[%clk 01:27:14]}
{[%emt 00:02:08]} 12. Nxe4 {[%clk 01:18:48]} {[%emt 00:01:05]} Nf6 {[%clk
01:27:31]} {[%emt 00:00:13]} 13. Qe2 {[%clk 01:16:55]} {[%emt 00:02:24]} Nxe4
{[%clk 01:27:12]} {[%emt 00:00:49]} 14. Bxe4 {[%clk 01:17:12]} {[%emt
00:00:12]} Bxe4 {[%clk 01:27:31]} {[%emt 00:00:12]} 15. Qxe4 {[%clk 01:17:40]}
{[%emt 00:00:02]} O-O {[%clk 01:27:36]} {[%emt 00:00:25]} 16. Rb1 {[%clk
01:11:05]} {[%emt 00:07:04]} Rad8 {[%clk 01:26:24]} {[%emt 00:01:42]} 17. Bf4
{[%clk 01:08:20]} {[%emt 00:03:15]} Bf6 {[%clk 01:26:30]} {[%emt 00:00:25]} 18.
Be5 {[%clk 01:08:36]} {[%emt 00:00:13]} Bxe5 {[%clk 01:26:45]} {[%emt
00:00:16]} 19. Qxe5 {[%clk 01:08:53]} {[%emt 00:00:13]} Rd5 {[%clk 01:27:01]}
{[%emt 00:00:13]} 20. Qe2 {[%clk 01:09:11]} {[%emt 00:00:13]} Rfd8 {[%clk
01:27:08]} {[%emt 00:00:22]} 21. Rfd1 {[%clk 01:07:55]} {[%emt 00:01:46]} h6
{[%clk 01:26:41]} {[%emt 00:00:57]} 22. g3 {[%clk 01:02:47]} {[%emt 00:05:38]}
R8d7 {[%clk 01:26:42]} {[%emt 00:00:30]} 23. Kf1 {[%clk 01:02:49]} {[%emt
00:00:28]} Qd8 {[%clk 01:26:12]} {[%emt 00:01:00]} 24. Ke1 {[%clk 01:02:19]}
{[%emt 00:01:00]} Kh8 {[%clk 01:21:38]} {[%emt 00:05:04]} 25. f4 {[%clk
01:00:02]} {[%emt 00:02:47]} Qa5 {[%clk 01:14:53]} {[%emt 00:07:01]} 26. b4
{[%clk 00:57:53]} {[%emt 00:02:53]} Qd8 {[%clk 01:15:05]} {[%emt 00:00:17]} 27.
a4 {[%clk 00:57:16]} {[%emt 00:01:08]} f6 {[%clk 01:07:16]} {[%emt 00:08:19]}
28. a5 {[%clk 00:50:37]} {[%emt 00:07:09]} Qc7 {[%clk 01:06:43]} {[%emt
00:01:02]} 29. Qg4 {[%clk 00:46:57]} {[%emt 00:04:09]} e5 {[%clk 00:55:27]}
{[%emt 00:11:47]} 30. fxe5 {[%clk 00:44:52]} {[%emt 00:02:29]} fxe5 {[%clk
00:52:58]} {[%emt 00:03:06]} 31. Rb2 {[%clk 00:43:27]} {[%emt 00:01:55]} exd4
{[%clk 00:52:52]} {[%emt 00:00:36]} 32. Re2 {[%clk 00:37:36]} {[%emt 00:06:20]}
Re7 {[%clk 00:51:30]} {[%emt 00:01:50]} 33. Rxd4 {[%clk 00:37:35]} {[%emt
00:00:34]} Rxe2+ {[%clk 00:46:07]} {[%emt 00:05:53]} 34. Kxe2 {[%clk 00:32:36]}
{[%emt 00:05:28]} Qe7+ {[%clk 00:32:27]} {[%emt 00:14:09]} 35. Kd2 {[%clk
00:29:59]} {[%emt 00:03:08]} Qf7 {[%clk 00:27:50]} {[%emt 00:05:07]} 36. Ke3
{[%clk 00:25:19]} {[%emt 00:05:10]} Re5+ {[%clk 00:20:34]} {[%emt 00:07:43]} 37.
Re4 {[%clk 00:24:04]} {[%emt 00:01:48]} Rxe4+ {[%clk 00:15:57]} {[%emt
00:05:08]} 38. Qxe4 {[%clk 00:24:21]} {[%emt 00:00:13]} Qh5 {[%clk 00:15:47]}
{[%emt 00:00:37]} 39. Qg2 {[%clk 00:22:52]} {[%emt 00:01:59]} Qe5+ {[%clk
00:15:43]} {[%emt 00:00:34]} 40. Kd2 {[%clk 00:20:04]} {[%emt 00:03:20]} Qe6
{[%clk 00:15:53]} {[%emt 00:00:21]} 41. Kc1 {[%clk 00:19:16]} {[%emt 00:01:12]}
Qc4 {[%clk 00:16:00]} {[%emt 00:00:26]} 42. Kb2 {[%clk 00:19:11]} {[%emt
00:00:36]} b6 {[%clk 00:15:49]} {[%emt 00:00:43]} 43. axb6 {[%clk 00:19:12]}
{[%emt 00:00:29]} axb6 {[%clk 00:16:17]} {[%emt 00:00:02]} 44. Qf2 {[%clk
00:18:01]} {[%emt 00:01:41]} c5 {[%clk 00:15:42]} {[%emt 00:01:05]} 45. Qf8+
{[%clk 00:17:51]} {[%emt 00:00:39]} Kh7 {[%clk 00:15:54]} {[%emt 00:00:18]} 46.
Qf5+ {[%clk 00:18:05]} {[%emt 00:00:16]} Kh8 {[%clk 00:15:00]} {[%emt
00:01:20]} 47. Qf8+ {[%clk 00:17:18]} {[%emt 00:01:22]} Kh7 {[%clk 00:15:27]}
{[%emt 00:00:03]} 48. Qf5+ {[%clk 00:17:33]} {[%emt 00:00:14]} 1/2-1/2

[Event "Goteborg Open 2024"]
[Site "Goteborgs Schackcentrum, Vegatan 20, Gothenburg, Sweden"]
[Date "2024.08.03"]
[Round "6.8"]
[White "Green, David"]
[Black "Westlund, Tim"]
[Result "0-1"]
[TimeControl "15 minutes + 5 seconds per move from move one (Round 1 - 4) / 90 minutes + 30 seconds per move from move one (Round 5 - 8)"]
[WhiteFideId "1769332"]
[BlackFideId "1754718"]
[WhiteElo "1946"]
[BlackElo "1886"]

1. e4 {[%clk 01:30:55]} {[%emt 00:00:05]} e5 {[%clk 01:30:55]} {[%emt
00:00:05]} 2. Nc3 {[%clk 01:31:20]} {[%emt 00:00:06]} Nf6 {[%clk 01:31:18]}
{[%emt 00:00:06]} 3. f4 {[%clk 01:31:38]} {[%emt 00:00:09]} d5 {[%clk
01:31:46]} {[%emt 00:00:05]} 4. fxe5 {[%clk 01:31:55]} {[%emt 00:00:13]} Nxe4
{[%clk 01:32:02]} {[%emt 00:00:15]} 5. d3 {[%clk 01:32:01]} {[%emt 00:00:25]}
Qh4+ {[%clk 01:23:07]} {[%emt 00:09:25]} 6. g3 {[%clk 01:32:18]} {[%emt
00:00:12]} Nxg3 {[%clk 01:22:02]} {[%emt 00:01:34]} 7. Nf3 {[%clk 01:32:36]}
{[%emt 00:00:12]} Qh5 {[%clk 01:22:01]} {[%emt 00:00:32]} 8. Nxd5 {[%clk
01:32:41]} {[%emt 00:00:24]} Bg4 {[%clk 01:15:31]} {[%emt 00:07:00]} 9. Bg2
{[%clk 01:10:15]} {[%emt 00:22:56]} Bxf3 {[%clk 01:05:32]} {[%emt 00:10:30]} 10.
Qxf3 {[%clk 01:09:12]} {[%emt 00:01:33]} Qxe5+ {[%clk 00:54:45]} {[%emt
00:11:16]} 11. Qe3 {[%clk 01:08:09]} {[%emt 00:01:33]} Qxe3+ {[%clk 00:53:11]}
{[%emt 00:02:04]} 12. Bxe3 {[%clk 01:07:46]} {[%emt 00:00:53]} Nxh1 {[%clk
00:53:28]} {[%emt 00:00:14]} 13. Nxc7+ {[%clk 01:07:00]} {[%emt 00:01:16]} Kd7
{[%clk 00:52:27]} {[%emt 00:01:31]} 14. Nxa8 {[%clk 01:06:21]} {[%emt
00:01:10]} Nc6 {[%clk 00:52:14]} {[%emt 00:00:42]} 15. Bh3+ {[%clk 00:52:00]}
{[%emt 00:14:50]} Kd8 {[%clk 00:52:00]} {[%emt 00:00:44]} 16. Bf4 {[%clk
00:33:38]} {[%emt 00:18:52]} Bc5 {[%clk 00:51:36]} {[%emt 00:00:52]} 17. Bg2
{[%clk 00:22:06]} {[%emt 00:12:05]} Nf2 {[%clk 00:50:16]} {[%emt 00:01:50]} 18.
h3 {[%clk 00:19:50]} {[%emt 00:02:46]} Re8+ {[%clk 00:45:31]} {[%emt 00:05:14]}
19. Kf1 {[%clk 00:15:21]} {[%emt 00:04:59]} Ne5 {[%clk 00:42:42]} {[%emt
00:03:17]} 20. Re1 {[%clk 00:10:21]} {[%emt 00:05:32]} f6 {[%clk 00:39:32]}
{[%emt 00:03:40]} 21. Bg3 {[%clk 00:08:10]} {[%emt 00:02:40]} Kc8 {[%clk
00:36:47]} {[%emt 00:03:15]} 22. Bxf2 {[%clk 00:07:15]} {[%emt 00:01:26]} Bxf2
{[%clk 00:37:11]} {[%emt 00:00:05]} 23. Kxf2 {[%clk 00:07:16]} {[%emt
00:00:30]} Re7 {[%clk 00:37:05]} {[%emt 00:00:37]} 24. Re4 {[%clk 00:05:15]}
{[%emt 00:02:30]} Kb8 {[%clk 00:36:20]} {[%emt 00:01:13]} 25. Rd4 {[%clk
00:04:29]} {[%emt 00:01:17]} Rd7 {[%clk 00:33:00]} {[%emt 00:03:52]} 26. Re4
{[%clk 00:01:25]} {[%emt 00:03:33]} Kxa8 {[%clk 00:31:14]} {[%emt 00:02:17]} 27.
d4 {[%clk 00:01:10]} {[%emt 00:00:45]} Nc6 {[%clk 00:31:30]} {[%emt 00:00:10]}
28. Re8+ {[%clk 00:01:07]} {[%emt 00:00:36]} Nd8 {[%clk 00:31:53]} {[%emt
00:00:07]} 29. Ke3 {[%clk 00:00:51]} {[%emt 00:00:47]} Kb8 {[%clk 00:30:58]}
{[%emt 00:01:25]} 30. Bf3 {[%clk 00:01:05]} {[%emt 00:00:15]} Kc7 {[%clk
00:30:30]} {[%emt 00:00:58]} 31. d5 {[%clk 00:00:52]} {[%emt 00:00:45]} Kb6
{[%clk 00:27:11]} {[%emt 00:03:47]} 32. c4 {[%clk 00:00:40]} {[%emt 00:00:42]}
Nf7 {[%clk 00:22:20]} {[%emt 00:05:21]} 33. Bg4 {[%clk 00:00:34]} {[%emt
00:00:37]} Rc7 {[%clk 00:20:58]} {[%emt 00:01:52]} 34. b3 {[%clk 00:00:33]}
{[%emt 00:00:31]} Kc5 {[%clk 00:19:17]} {[%emt 00:02:10]} 35. Be6 {[%clk
00:00:34]} {[%emt 00:00:30]} a5 {[%clk 00:17:12]} {[%emt 00:02:34]} 36. Kd3
{[%clk 00:00:32]} {[%emt 00:00:33]} Ne5+ {[%clk 00:16:08]} {[%emt 00:01:33]} 37.
Ke4 {[%clk 00:00:31]} {[%emt 00:00:30]} Nf7 {[%clk 00:14:37]} {[%emt 00:02:00]}
38. Ra8 {[%clk 00:00:41]} {[%emt 00:00:17]} b6 {[%clk 00:14:08]} {[%emt
00:01:04]} 39. Rc8 {[%clk 00:00:32]} {[%emt 00:00:39]} Nd6+ {[%clk 00:14:30]}
{[%emt 00:00:09]} 40. Kd3 {[%clk 00:00:56]} {[%emt 00:00:04]} Nxc8 {[%clk
00:14:50]} {[%emt 00:00:12]} 41. Kc3 {[%clk 00:01:26]} {[%emt 00:00:01]} 0-1